Cogmind - Beta 16.1 @@@ ROGUE MODE // 2026.02.24 @ 04:52:11 Player: naththebg Result: Destroyed self with Precision Grenade Launcher Performance ------------- Evolutions (3) 1500 Regions Visited (10) 2000 Robots Destroyed (258) 1290 Value Destroyed (8341) 8341 Prototype IDs (12) 240 Alien Tech Used (0) 0 Bonus (1363) 1363 TOTAL SCORE: 14734 Bonus ------- High Alert Combat Kills 1363 Cogmind --------- Core Integrity 0/700 Matter 171/300 Energy 100/100 System Corruption 27% Temperature Cool (0) Movement Core (450) Ox8 Location -7/Lower Caves Parts ------- > --- POWER (1) -------- (None) > --- PROPULSION (3) --- (None) > --- UTILITY (6) ------ Large Storage Unit Advanced Visual Processing Unit > --- WEAPON (3) ------- Precision Grenade Launcher > --- INVENTORY (15) --- Improved Deuterium Engine Improved Deuterium Engine Medium Treads Improved Cooling System Improved Cooling System Improved Signal Interpreter Weapon Cycler Medium Reactive Plating Improved Field Recycling Unit (38) Peak State ------------ > --- POWER ------------ Improved Deuterium Engine > --- PROPULSION ------- Advanced Treads Advanced Treads Advanced Treads > --- UTILITY ---------- Improved Cooling System Large Storage Unit Advanced Visual Processing Unit Weapon Cycler Improved Medium Armor Plating Improved Medium Armor Plating > --- WEAPON ----------- Advanced Assault Cannon Mini Assault Cannon Precision Grenade Launcher > --- INVENTORY -------- Light Nuclear Core Improved Deuterium Engine Improved Deuterium Engine Light Treads Light Treads Improved Cooling System Improved Cooling System Improved Signal Interpreter Matter Filter Weapon Cycler Medium Reactive Plating Improved Field Recycling Unit Assault Cannon Gauss Cannon Gauss Cannon [Rating: 52] Favorites ----------- Power Heavy Ion Engine Engine Heavy Ion Engine Power Core Light Nuclear Core Propulsion Advanced Treads Treads Advanced Treads Leg Aluminum Leg Wheel Wheel Utility Large Storage Unit Device Improved Cooling System Storage Large Storage Unit Processor Advanced Visual Processing Unit Hackware Hacking Suite Protection Improved Medium Armor Plating Weapon Advanced Beam Cannon Energy Gun EM Pulse Gun Energy Cannon Advanced Beam Cannon Ballistic Gun Assault Rifle Ballistic Cannon Mini Assault Cannon Launcher Precision Grenade Launcher Build | -11 -10 -10 -9 -9 -9 -7 -7 -7 -7 -7 ------- Run | Yrd Mat Min Mat Sto Rec Fac Was Fac Low Low Slots Evolved 6 | . . . 2 . . 4 . . . . Power . | . . . . . . . . . . . Propulsion 1 | . . . 1 . . . . . . . Utility 4 | . . . 1 . . 3 . . . . Weapon 1 | . . . . . . 1 . . . . Parts Attached 107 | 4 13 3 25 12 2 28 2 8 4 6 Power 10 | 1 1 2 2 . . 2 . 1 . 1 Engine 8 | 1 1 1 2 . . 1 . 1 . 1 Core 2 | . . 1 . . . 1 . . . . Reactor . | . . . . . . . . . . . Propulsion 40 | 2 4 1 13 8 1 7 . 1 2 1 Treads 36 | . 2 1 13 8 1 7 . 1 2 1 Leg 2 | 2 . . . . . . . . . . Wheel 2 | . 2 . . . . . . . . . Hover . | . . . . . . . . . . . Flight . | . . . . . . . . . . . Utility 32 | 1 2 . 5 3 1 13 2 4 1 . Device 16 | . . . 2 1 1 6 2 3 1 . Storage 3 | 1 1 . 1 . . . . . . . Processor 2 | . . . . . . 1 . 1 . . Hackware 1 | . . . 1 . . . . . . . Protection 10 | . 1 . 1 2 . 6 . . . . Artifact . | . . . . . . . . . . . Weapon 25 | . 6 . 5 1 . 6 . 2 1 4 Energy Gun 4 | . 4 . . . . . . . . . Energy Cannon 7 | . . . 2 1 . 4 . . . . Ballistic Gun 3 | . . . 2 . . . . . . 1 Ballistic Cannon 9 | . 2 . . . . 1 . 2 1 3 Launcher 2 | . . . 1 . . 1 . . . . Special Weapon . | . . . . . . . . . . . Impact Weapon . | . . . . . . . . . . . Slashing Weapon . | . . . . . . . . . . . Piercing Weapon . | . . . . . . . . . . . Special Melee Weapon . | . . . . . . . . . . . Unidentified Prototypes 2 | . . . . . . 2 . . . . Parts Lost 30 | . 3 2 3 1 . 3 . 3 1 14 Power 3 | . 1 1 . . . . . . . 1 Propulsion 7 | . . 1 . . . . . 1 . 5 Utility 11 | . . . 1 1 . 3 . 1 1 4 Weapon 9 | . 2 . 2 . . . . 1 . 4 Highest Loss Streak 11 | . 2 2 2 1 . 1 . 1 1 11 To Critical Strikes 1 | . . . . . . . . . . 1 Average Backups 13 | 5 8 14 14 14 15 14 15 13 14 14 Power 1 | . . . . 1 1 1 1 2 3 2 Propulsion 3 | 2 2 2 2 3 5 3 2 1 2 2 Utility 4 | . . 4 4 3 3 5 7 6 6 6 Weapon 4 | 2 4 8 6 5 5 4 5 3 3 3 Tool/Special . | . . . . . . . . . . . Unused Backups 22 | . . . 9 1 . 4 . . . 8 Power 2 | . . . . . . . . . . 2 Propulsion 3 | . . . 2 . . . . . . 1 Utility 6 | . . . 1 . . 1 . . . 4 Weapon 10 | . . . 6 1 . 2 . . . 1 Tool/Special 1 | . . . . . . 1 . . . . Average Slot Usage (%) 96 | . 88 98 98 99 100 95 100 99 99 92 Engine 8 | . 13 13 8 11 11 5 7 7 7 6 Treads 23 | . 15 11 29 32 33 22 23 23 23 22 Wheel 1 | . 5 15 2 . . . . . . . Device 15 | . . . 9 10 11 22 23 20 20 22 Storage 9 | . 14 14 11 11 11 7 7 7 7 7 Processor 1 | . . . . . . . . 5 7 7 Protection 9 | . 4 14 11 11 11 12 15 11 9 1 Energy Gun 3 | . 23 . . . . . . . . . Energy Cannon 12 | . . . 16 22 22 22 16 3 . . Ballistic Cannon 7 | . 3 28 2 . . . . 18 22 22 Peak Build Rating 52 | 4 10 12 19 20 19 50 50 51 52 51 Average Rating 32 | 2 7 9 17 19 19 41 49 49 50 47 On Entrance 25 | . 4 10 12 19 19 19 48 50 49 51 Avg Prop Armor Cover (%) 9 | . . 8 11 . . . . . . . Naked Turns . | . . . . . . . . . . . Heaviest Build 69 | 8 34 36 43 45 51 66 65 69 65 60 Greatest Support 66 | 20 40 20 63 60 60 66 66 66 66 66 Greatest Overweight (x) 3 | 1 1 3 3 . . . . 1 . . Average Overweight (x) . | . . 2 . . . . . . . . Largest Inventory Capacity 15 | 8 15 15 15 15 15 15 15 15 15 15 Average Capacity 14 | 7 13 15 15 15 15 15 15 15 15 15 Most Carried 15 | 8 15 15 15 15 15 15 15 15 15 15 Average Carried 13 | 6 8 14 14 14 15 14 15 13 14 14 Final Capacity 15 | 8 15 15 15 15 15 15 15 15 15 15 Final Carried 15 | 8 15 15 15 15 15 15 15 15 15 9 Class Distribution -------------------- 39% | Mutant 33% | Tank 13% | Scientist-Tank 5% | Gunner 4% | Scavenger-Mutant 4% | Scientist-Gunner Dominant Class ---------------- Mutant | -10/Materials Mutant | -10/Mines Mutant | -9/Materials Mutant | -9/Storage Mutant | -9/Recycling Tank | -7/Factory Tank | -7/Waste Scientist-Tank | -7/Factory Scientist-Tank | -7/Lower Caves Gunner | -7/Lower Caves Resources | -11 -10 -10 -9 -9 -9 -7 -7 -7 -7 -7 ----------- Run | Yrd Mat Min Mat Sto Rec Fac Was Fac Low Low Matter Collected 3419 | 240 254 178 560 135 30 543 243 435 333 468 Remotely . | . . . . . . . . . . . Salvage Created 10342 | . 801 130 1627 1153 431 2862 1498 1144 70 626 Parts 453 | . 36 12 114 61 19 128 11 54 5 13 Haulers Intercepted 20 | . 2 . 6 5 . 5 . 2 . . Recyclers Shooed 5 | . 1 1 1 . . 2 . . . . Parts Field Recycled 68 | . . . . . 27 . . 29 12 . Retrieved Matter 788 | . . . . . 100 . . 616 72 . Parts Self-Destructed 14 | . . . . . . . . . 5 9 Prevented . | . . . . . . . . . . . Parts Restored . | . . . . . . . . . . . Kills | -11 -10 -10 -9 -9 -9 -7 -7 -7 -7 -7 ------- Run | Yrd Mat Min Mat Sto Rec Fac Was Fac Low Low Combat Hostiles Destroyed 185 | . 15 7 33 17 2 59 6 27 5 14 Guns 17 | . 10 . 5 . . . . . . 2 Cannons 127 | . 5 7 26 16 2 42 1 18 2 8 AOE 34 | . . . . . . 13 5 9 3 4 Classes Destroyed 18 | . 5 . 5 . . 5 1 1 . 1 Worker 12 | . 4 . 4 . . 2 . 2 . . Builder 6 | . . . 1 . . 1 . 4 . . Tunneler 3 | . . . . . . 3 . . . . Hauler 20 | . 2 . 6 5 . 5 . 2 . . Recycler 12 | . . . 2 1 5 3 . 1 . . Mechanic 2 | . . . . . . . . 2 . . Operator 3 | . . . 1 . . 2 . . . . Watcher 15 | . 3 . 5 2 . 4 . 1 . . Swarmer 41 | . 2 3 12 . . 15 . 4 4 1 Grunt 84 | . 13 4 10 9 . 23 . 17 . 8 Brawler 4 | . . . . . . 2 . 1 . 1 Duelist 6 | . . . 1 1 . 1 . 1 . 2 Protector 1 | . . . . . . 1 . . . . Sentry 29 | . . . 10 7 2 7 . 1 1 1 Hunter 3 | . . . . . . 2 . 1 . . Programmer 10 | . . . . . . 8 . 2 . . Behemoth 1 | . . . . . . . . . . 1 Compactor 6 | . . . . . . . 6 . . . Packrat 1 | . . . . . . . . . . 1 Best Kill Streak 7 | . 3 3 7 6 4 7 4 6 3 6 Combat Bots Only 7 | . 3 3 6 4 1 7 4 4 3 6 Max Kills in Single Turn 7 | . 1 1 2 2 1 7 1 4 2 3 Gunslinging . | . . . . . . . . . . . Exploded 3 | . . . . . . 3 1 2 2 3 Melee . | . . . . . . . . . . . Uniques/NPCs Destroyed . | . . . . . . . . . . . Combat | -11 -10 -10 -9 -9 -9 -7 -7 -7 -7 -7 -------- Run | Yrd Mat Min Mat Sto Rec Fac Was Fac Low Low Hostile Shots Fired 911 | . 83 49 116 61 . 373 . 87 29 113 Missed 272 | . 22 8 22 13 . 142 . 27 12 26 Hits 639 | . 61 41 94 48 . 231 . 60 17 87 Melee 21 | . . . 2 4 . . . . . 15 Projectile 618 | . 61 41 92 44 . 231 . 60 17 72 Critical Strikes 16 | . . . 2 2 . 4 1 . . 7 Part Disruptions 1 | . . . . . . 1 . . . . Damage Taken 8977 | . 737 360 1034 697 . 2853 42 1005 201 2048 Core 997 | . 112 55 94 27 . 282 . 61 6 360 Absorbed by Shields . | . . . . . . . . . . . Regen/Repaired (Parts) 362 | . . . 62 . . 300 . . . . Core Remaining (%) 67 | 100 . 33 . . 69 . . . . . Volleys Fired 597 | . 75 21 106 53 7 171 29 83 8 44 Largest 3 | . 2 2 2 2 2 3 3 3 3 3 Hottest 204 | . 90 60 136 136 136 204 188 188 120 124 Shots Fired 1352 | . 143 42 208 106 14 469 44 193 15 118 Gun 171 | . 117 . 48 . . . . . . 6 Cannon 1140 | . 26 42 158 106 14 458 28 186 13 109 Launcher 41 | . . . 2 . . 11 16 7 2 3 Special . | . . . . . . . . . . . Kinetic 400 | . 26 42 75 . . . . 129 13 115 Thermal 823 | . 29 . 131 106 14 458 28 57 . . Explosive 41 | . . . 2 . . 11 16 7 2 3 Electromagnetic 88 | . 88 . . . . . . . . . Robot Hit Streak 18 | . 7 5 13 15 3 18 7 10 13 8 Robot Miss Streak 10 | . 4 3 5 2 1 8 1 10 2 2 Penetration Max 1 | . . . . . . . . 1 . . Secondary Targets 2 | . 1 . 1 . . . . . . . Max Gunslinging Chain 1 | . 1 . 1 . . . . . . . Shots Hit Robots 785 | . 84 25 131 75 8 263 28 88 7 76 Core Hits 361 | . 36 8 55 26 8 126 11 56 7 28 Critical Kills 5 | . . . 1 1 . 3 . . . . Critical Parts Destroyed . | . . . . . . . . . . . Critical Strikes 31 | . 4 2 5 1 . 3 . 8 3 5 Burn 3 | . 1 . 2 . . . . . . . Meltdown 5 | . . . 1 1 . 3 . . . . Blast 21 | . 1 2 2 . . . . 8 3 5 Corrupt 2 | . 2 . . . . . . . . . Melee Attacks . | . . . . . . . . . . . Impact . | . . . . . . . . . . . Slashing . | . . . . . . . . . . . Piercing . | . . . . . . . . . . . Sneak Attacks . | . . . . . . . . . . . Combat Hostiles . | . . . . . . . . . . . Follow-up Attacks . | . . . . . . . . . . . Damage Inflicted 23672 | . 1449 471 2626 1593 194 8252 1971 4136 487 2493 Guns 1496 | . 969 . 410 . . . . . . 117 Cannons 15513 | . 270 471 2158 1577 167 5808 475 2481 187 1919 Explosions 6354 | . 192 . 53 . . 2347 1496 1587 300 379 Melee . | . . . . . . . . . . . Ramming 309 | . 18 . 5 16 27 97 . 68 . 78 Kinetic 5380 | . 270 471 800 . . . . 1616 187 2036 Thermal 12049 | . 391 . 1768 1577 167 6379 475 1292 . . Explosive 5164 | . . . 53 . . 1776 1496 1160 300 379 Electromagnetic 770 | . 770 . . . . . . . . . Impact . | . . . . . . . . . . . Slashing . | . . . . . . . . . . . Piercing . | . . . . . . . . . . . Highest Corruption 27 | . . . . . . . 25 27 27 27 Average Corruption 25 | . . . . . . . 10 26 27 27 Corruption Purged . | . . . . . . . . . . . Corruption Blocked . | . . . . . . . . . . . Effects 197 | . . . . . . . 6 89 50 52 Message Errors 44 | . . . . . . . . 23 12 9 Matter Fused 38 | . . . . . . . 1 14 12 11 Heat Flow Errors 29 | . . . . . . . 3 9 7 10 Energy Discharges 23 | . . . . . . . . 13 5 5 Parts Rejected 2 | . . . . . . . . 1 . 1 Parts Fused 2 | . . . . . . . . 1 . 1 Data Loss (minor) 14 | . . . . . . . . 5 5 4 Data Loss (major) 10 | . . . . . . . 1 3 4 2 Misfires 5 | . . . . . . . . 2 2 1 Alerts 7 | . . . . . . . . 6 . 1 Misdirections 2 | . . . . . . . . 2 . . Weapon Failures 21 | . . . . . . . 1 10 3 7 Overload Shots . | . . . . . . . . . . . Overflow Damage 394 | . 23 . 13 40 . 114 . 89 . 115 Projectiles 248 | . 15 . 13 40 . 103 . 40 . 37 Explosions 135 | . 8 . . . . 11 . 49 . 67 Melee 11 | . . . . . . . . . . 11 Knockbacks 24 | . 3 6 1 . . . . 9 . 5 Impact . | . . . . . . . . . . . Kinetic 22 | . 2 6 1 . . . . 9 . 4 Secondary 2 | . 1 . . . . . . . . 1 Self-Inflicted Damage 368 | . 53 . . . . 127 . . 30 158 Shots 11 | . 3 . . . . 3 . . 2 3 Rammed 35 | . 2 . . 3 3 10 . 6 . 11 Targets Rammed 44 | . 3 . 1 4 3 12 . 7 . 14 Kicked . | . . . . . . . . . . . Crushed 9 | . 1 . 1 1 . 2 . 1 . 3 Highest Temperature 458 | . 434 156 282 458 189 382 167 298 226 236 Average Temperature 72 | . 86 59 57 89 68 76 48 58 88 47 Received Heat Transfer 2412 | . 339 63 234 270 . 759 27 279 18 423 Effects 11 | . 7 . . . . 1 . 3 . . Shutdowns 2 | . 2 . . . . . . . . . Interference 5 | . 2 . . . . . . 3 . . Short Circuit 3 | . 2 . . . . 1 . . . . Damage (minor) 1 | . 1 . . . . . . . . . Siege Activations . | . . . . . . . . . . . Martial Activations . | . . . . . . . . . . . Shielding Activations . | . . . . . . . . . . . Robots Disrupted . | . . . . . . . . . . . Combat Hostiles . | . . . . . . . . . . . Robots Corrupted 1 | . . . . . . . . . . 1 Combat Hostiles 1 | . . . . . . . . . . 1 Parts Fried 1 | . 1 . . . . . . . . . Impact Corruptions 4 | . . . . . . . . . . 4 Robots Melted 8 | . . . 2 1 . 5 . . . . Combat Hostiles 7 | . . . 2 1 . 4 . . . . Parts Melted 44 | . . . 8 9 . 23 . 4 . . Heat Transferred 19920 | . 966 . 3367 2812 296 9959 814 1706 . . Parts Sabotaged . | . . . . . . . . . . . Parts Stolen . | . . . . . . . . . . . Parts Stripped . | . . . . . . . . . . . Power Chain Reactions 3 | . 3 . . . . . . . . . Alert | -11 -10 -10 -9 -9 -9 -7 -7 -7 -7 -7 ------- Run | Yrd Mat Min Mat Sto Rec Fac Was Fac Low Low Maximum Alert Level 5 | . 1 . 2 1 . 5 2 3 . . Low Security (%) 55 | 100 99 100 76 74 100 35 . . . . Level 1 11 | . . . 17 25 . 16 . 2 . . Level 2 9 | . . . 5 . . 7 100 31 . . Level 3 10 | . . . . . . 4 . 66 . . Level 4 11 | . . . . . . 31 . . . . Level 5 1 | . . . . . . 4 . . . . High Security . | . . . . . . . . . . . Max Security . | . . . . . . . . . . . Peak Influence 1645 | . 209 108 417 286 104 1645 576 948 . . Initial 575 | . . 23 . 87 99 200 575 336 . . Average 399 | . 41 46 166 160 31 670 539 722 . . Influence Increases 6655 | . 598 175 1089 519 164 2396 36 1143 210 325 Destroy 0b10 Robot/C 3560 | . 300 140 660 340 40 1160 . 540 100 280 Destroy 0b10 Robot/NC 385 | . 45 . 95 40 25 105 . 60 . 15 Destroy Leader 878 | . 70 20 202 104 . 306 . 126 20 30 Successful Hack 91 | . 39 . 2 14 9 25 . 2 . . Select Force Hacks 90 | . . . . . 90 . . . . . Disable Machine 645 | . 30 . 60 . . 345 . 210 . . Destroy Structure 311 | . 9 . 25 6 . 120 36 115 . . Advance Influence 200 | . . . . . . 200 . . . . Partial Spotted 60 | . . . . . . 15 . 45 . . Lose Combat Pursuer 435 | . 105 15 45 15 . 120 . 45 90 . Influence Decreases 6560 | . 538 235 881 473 418 752 1199 709 759 596 Entered New Map 1936 | . . 37 . 121 155 . 1069 145 339 70 Time Decay 3854 | . 358 178 551 342 263 722 110 534 410 386 Lost Part 300 | . 30 20 30 10 . 30 . 30 10 140 Lost Ally 20 | . . . . . . . 20 . . . Purge Threat 450 | . 150 . 300 . . . . . . . Squads Dispatched 36 | . 3 . 4 1 . 19 . 8 . 1 Investigation 5 | . 2 . 2 . . 1 . . . . Extermination 9 | . . . . . . 8 . 1 . . Reinforcement 13 | . 1 . 2 1 . 5 . 4 . . Assault 3 | . . . . . . 2 . . . 1 Garrison 6 | . . . . . . 3 . 3 . . Intercept . | . . . . . . . . . . . Searches Triggered . | . . . . . . . . . . . Construction Impeded 3 | . . . . . . 1 . 2 . . Haulers Reinforced 1 | . . . . . . . . 1 . . Active Scanning Responses . | . . . . . . . . . . . Cargo Convoy Interrupts . | . . . . . . . . . . . Stealth | -11 -10 -10 -9 -9 -9 -7 -7 -7 -7 -7 --------- Run | Yrd Mat Min Mat Sto Rec Fac Was Fac Low Low Distress Signals 9 | . 2 . 2 1 . 3 . 1 . . Communications Jammed . | . . . . . . . . . . . Distress Signals . | . . . . . . . . . . . Times Spotted 255 | . 26 10 48 20 . 86 6 35 9 15 Peak Tracking Total 7 | . 4 5 5 5 . 6 2 5 2 7 Tactical Retreats 20 | . 6 1 2 1 . 5 . 2 3 . Traps | -11 -10 -10 -9 -9 -9 -7 -7 -7 -7 -7 ------- Run | Yrd Mat Min Mat Sto Rec Fac Was Fac Low Low Traps Triggered 6 | . 1 . 1 . . 3 . 1 . . Indirectly . | . . . . . . . . . . . Trap Hack Attempts . | . . . . . . . . . . . Triggered . | . . . . . . . . . . . Disarmed . | . . . . . . . . . . . Reprogrammed . | . . . . . . . . . . . Reused . | . . . . . . . . . . . Traps Extracted . | . . . . . . . . . . . Installed . | . . . . . . . . . . . Triggered . | . . . . . . . . . . . Machines | -11 -10 -10 -9 -9 -9 -7 -7 -7 -7 -7 ---------- Run | Yrd Mat Min Mat Sto Rec Fac Was Fac Low Low Machines Disabled 43 | . 2 . 4 . . 23 . 14 . . Max in Single Turn 15 | . 1 . 1 . . 15 . 4 . . Garrison Access 2 | . . . . 1 . 1 . . . . Machines Repaired . | . . . . . . . . . . . Machines Dismantled . | . . . . . . . . . . . Machines Sabotaged . | . . . . . . . . . . . Overloaded Fab Kills . | . . . . . . . . . . . Hacking | -11 -10 -10 -9 -9 -9 -7 -7 -7 -7 -7 --------- Run | Yrd Mat Min Mat Sto Rec Fac Was Fac Low Low Machines Accessed 54 | . 10 . 9 6 8 17 . 4 . . Terminals 29 | . 7 . 7 5 4 5 . 1 . . Fabricators 3 | . . . . . . 2 . 1 . . Repair Stations 4 | . 1 . 1 . . 1 . 1 . . Recycling Units 10 | . 2 . . . 4 4 . . . . Scanalyzers 3 | . . . 1 . . 1 . 1 . . Garrison Access 5 | . . . . 1 . 4 . . . . Total Hacks 137 | . 33 . 26 13 23 31 . 11 . . Successful 67 | . 17 . 11 6 13 14 . 6 . . Failed 69 | . 16 . 14 7 10 17 . 5 . . Catastrophic 9 | . 1 . 2 1 . 4 . 1 . . Database Lockouts 1 | . . . 1 . . . . . . . Manual 42 | . 12 . 16 4 7 3 . . . . Terminals 78 | . 22 . 21 12 10 12 . 1 . . Fabricators 4 | . . . . . . 3 . 1 . . Repair Stations 14 | . 4 . 3 . . 4 . 3 . . Recycling Units 25 | . 7 . . . 13 5 . . . . Scanalyzers 10 | . . . 2 . . 2 . 6 . . Garrison Access 6 | . . . . 1 . 5 . . . . Terminal Hacks 28 | . 10 . 7 3 5 3 . . . . Part Schematic 1 | . . . . . . 1 . . . . Robot Analysis 4 | . 2 . . 1 1 . . . . . Prototype ID Bank 9 | . 4 . 1 . 4 . . . . . Open Door 2 | . . . . 2 . . . . . . Alert Level 4 | . 2 . 2 . . . . . . . Unreport Threat 3 | . 1 . 2 . . . . . . . Locate Traps 3 | . . . 2 . . 1 . . . . Hauler Manifests 1 | . 1 . . . . . . . . . Zone Layout 1 | . . . . . . 1 . . . . Fabricator Hacks 1 | . . . . . . 1 . . . . Load Schematic 1 | . . . . . . 1 . . . . Repair Station Hacks 8 | . 1 . 2 . . 4 . 1 . . Scan Component 5 | . 1 . 1 . . 2 . 1 . . Repair 3 | . . . 1 . . 2 . . . . Recycling Unit Hacks 8 | . 2 . . . 4 2 . . . . Retrieve Components 8 | . 2 . . . 4 2 . . . . Scanalyzer 8 | . . . 1 . . 2 . 5 . . Retrieve Study 8 | . . . 1 . . 2 . 5 . . Garrison Access Hacks 2 | . . . . 1 . 1 . . . . Seal Access 2 | . . . . 1 . 1 . . . . Unauthorized Hacks 12 | . 4 . 1 2 4 1 . . . . Terminals 8 | . 3 . 1 2 1 1 . . . . Botnet 8 | . 3 . 1 2 1 1 . . . . Fabricators . | . . . . . . . . . . . Repair Stations . | . . . . . . . . . . . Recycling Units 4 | . 1 . . . 3 . . . . . Reject 1 | . 1 . . . . . . . . . Tunnel 3 | . . . . . 3 . . . . . Scanalyzers . | . . . . . . . . . . . Garrison Access . | . . . . . . . . . . . Data Cores Recovered 2 | . . . . . . 2 . . . . Used . | . . . . . . . . . . . Hacking Detections 44 | . 8 . 8 3 8 14 . 3 . . Full Trace Events 4 | . 1 . 2 . 1 . . . . . Feedback Events . | . . . . . . . . . . . Feedback Blocked . | . . . . . . . . . . . Robot Schematics Acquired . | . . . . . . . . . . . Robots Built . | . . . . . . . . . . . Authchips . | . . . . . . . . . . . Time . | . . . . . . . . . . . Total Robot Build Rating . | . . . . . . . . . . . Part Schematics Acquired 1 | . . . . . . 1 . . . . Parts Built . | . . . . . . . . . . . Authchips . | . . . . . . . . . . . Time . | . . . . . . . . . . . Total Part Build Rating . | . . . . . . . . . . . Part Studies Acquired 8 | . . . 1 . . 2 . 5 . . Parts Repaired 3 | . . . 1 . . 2 . . . . Time 102 | . . . 26 . . 76 . . . . Parts Recycled . | . . . . . . . . . . . Recycled Matter . | . . . . . . . . . . . Retrieved Matter . | . . . . . . . . . . . Retrieved Components 27 | . 8 . . . 1 18 . . . . Parts Scanalyzed . | . . . . . . . . . . . Part Schematics Acquired . | . . . . . . . . . . . Parts Damaged . | . . . . . . . . . . . Bothacking | -11 -10 -10 -9 -9 -9 -7 -7 -7 -7 -7 ------------ Run | Yrd Mat Min Mat Sto Rec Fac Was Fac Low Low Used RIF Installer . | . . . . . . . . . . . Robots Hacked . | . . . . . . . . . . . Non-combat . | . . . . . . . . . . . Combat . | . . . . . . . . . . . Robot Hacks Applied . | . . . . . . . . . . . Relay Couplers Released . | . . . . . . . . . . . Fabnet Peak Effective % . | . . . . . . . . . . . Robots Rewired . | . . . . . . . . . . . Allies Hacked . | . . . . . . . . . . . Hacks Repelled . | . . . . . . . . . . . Allies | -11 -10 -10 -9 -9 -9 -7 -7 -7 -7 -7 -------- Run | Yrd Mat Min Mat Sto Rec Fac Was Fac Low Low Total Allies 1 | . . . . . . . 1 . . . Largest Group 1 | . . . . . . . 1 . . . Highest-Rated Group 31 | . . . . . . . 31 . . . Highest-Rated Ally 31 | . . . . . . . 31 . . . Total Orders . | . . . . . . . . . . . Ally Attacks 26 | . . . . . . . 26 . . . Total Damage 426 | . . . . . . . 426 . . . Kills . | . . . . . . . . . . . Allies Corrupted . | . . . . . . . . . . . Allies Melted . | . . . . . . . . . . . Intel | -11 -10 -10 -9 -9 -9 -7 -7 -7 -7 -7 ------- Run | Yrd Mat Min Mat Sto Rec Fac Was Fac Low Low Active Infowar (turns) 3110 | . . . . . . . . 1216 988 906 Optics 3110 | . . . . . . . . 1216 988 906 Robot Analysis Total 4 | . 2 . . 1 1 . . . . . Derelict Logs Recovered 3 | . . 1 . . . . . . 2 . Drone Launches . | . . . . . . . . . . . Drone Recoveries . | . . . . . . . . . . . Exploration | -11 -10 -10 -9 -9 -9 -7 -7 -7 -7 -7 ------------- Run | Yrd Mat Min Mat Sto Rec Fac Was Fac Low Low Turns Passed 13357 | 60 1705 383 1781 771 802 4237 221 1503 988 906 Spaces Moved 7165 | 45 1009 247 840 335 481 2203 106 755 653 491 Core 18 | 18 . . . . . . . . . . Treads 6213 | . 513 . 676 335 481 2203 106 755 653 491 Legs 282 | 27 255 . . . . . . . . . Wheels 652 | . 241 247 164 . . . . . . . Hover . | . . . . . . . . . . . Flight . | . . . . . . . . . . . Fastest Speed 50 | 50 95 95 125 160 160 145 145 145 145 145 Average Speed 148 | 102 134 123 153 160 160 149 145 160 145 146 Slowest Speed 190 | 120 160 125 160 160 160 160 145 190 150 150 Overloaded Moves . | . . . . . . . . . . . Propulsion Burnouts . | . . . . . . . . . . . Robots Hopped . | . . . . . . . . . . . Potential Cave-ins . | . . . . . . . . . . . Cave-ins Triggered . | . . . . . . . . . . . Exploration Rate (%) 61 | 4 97 44 76 81 77 64 78 23 71 64 Regions Visited 10 Branch Regions 5 Pre-discovered Areas 4 | . . 1 . . 3 . . . . . Known Exits Taken 1 | . . . . . . . . 1 . . Unknown Exits Taken 7 | 1 1 1 1 1 1 . . . 1 . Scrap Searched 11 | . . 1 . . . . . . 3 7 Spaces Dug 38 | . . . 22 . . . . 5 11 . Terrain Destroyed 391 | . 6 . 22 . . 115 73 122 16 37 Melee . | . . . . . . . . . . . Projectile 66 | . . . . . . 4 1 29 5 27 AOE 325 | . 6 . 22 . . 111 72 93 11 10 Terrain Rammed . | . . . . . . . . . . . Walls Destroyed . | . . . . . . . . . . . Machines Disabled . | . . . . . . . . . . . Actions | -11 -10 -10 -9 -9 -9 -7 -7 -7 -7 -7 --------- Run | Yrd Mat Min Mat Sto Rec Fac Was Fac Low Low Total 8857 | 58 1211 283 1137 465 497 2871 141 911 680 603 Wait 741 | . 90 11 120 51 3 389 2 41 7 27 Move 7156 | 44 1008 246 839 334 480 2203 105 754 652 491 Hop . | . . . . . . . . . . . Pick Up 70 | 10 15 1 15 1 . 19 . 4 1 4 Fast Attach 26 | 2 2 1 6 1 . 11 . 1 1 1 Attach 30 | 2 7 1 3 1 . 6 . 3 1 6 Detach 2 | . . . . . . 2 . . . . Swap 96 | . 6 1 20 11 3 26 3 16 8 2 Drop 87 | . 5 1 27 9 1 32 2 2 2 6 Fire 597 | . 75 21 106 53 7 171 29 83 8 44 Melee . | . . . . . . . . . . . Ram . | . . . . . . . . . . . Kick . | . . . . . . . . . . . Crush 44 | . 3 . 1 4 3 12 . 7 . 14 Escape Stasis . | . . . . . . . . . . . Rewire 8 | . . . . . . . . . . 8 Trap . | . . . . . . . . . . . Miscellaneous . | . . . . . . . . . . . Route ------- -11/Scrapyard -10/Materials (discovered 4 exits: *Mat x3 / [*Min]) -10/Mines (discovered 2 exits: *Mat / [*Sub]) -9/Materials (discovered 4 exits: [*Mat x2] / [*Min] / *Sto) -9/Storage (discovered 2 exits: [*Mat] / *Rec) -9/Recycling -7/Factory (discovered 4 exits: [*Fac x3] / *Low) -7/Waste -7/Factory -7/Lower Caves -7/Lower Caves (discovered 1 exit: [*Fac]) History --------- Turn | Location | Event 12 | -11/Scrapyard | Discovered new exit (range 15) 61 | -11/Scrapyard | Entered Materials 303 | -10/Materials | Build established: Mutant 305 | -10/Materials | Discovered new exit (range 13) 765 | -10/Materials | Discovered new exit (range 11) 915 | -10/Materials | Discovered new exit (range 11) 1035 | -10/Materials | Discovered new exit (range 5) 1766 | -10/Materials | Entered Mines 1767 | -10/Mines | Learned location of Storage (-9) 1791 | -10/Mines | Core integrity fell below 50% 1894 | -10/Mines | Learned Materials stockpile data 1935 | -10/Mines | Discovered new exit (range 6) 2011 | -10/Mines | Assembled infested the area 2016 | -10/Mines | Assisted by a Guerilla fighting off Assembled 2132 | -10/Mines | Discovered new exit (range 9) 2149 | -10/Mines | Entered Materials 2149 | -9/Materials | Evolved 2 slots: Propulsion x1, Utility x1 2536 | -9/Materials | Discovered new exit (range 16) 2835 | -9/Materials | Build established: Scavenger-Mutant 3203 | -9/Materials | Central database locked down 3386 | -9/Materials | Build established: Mutant 3407 | -9/Materials | Repaired Lgt. Treads 3494 | -9/Materials | Discovered new exit (range 15) 3865 | -9/Materials | Discovered new exit (range 15) 3865 | -9/Materials | Discovered new exit (range 7) 3930 | -9/Materials | Entered Storage 4469 | -9/Storage | Discovered new exit (range 8) 4695 | -9/Storage | Used back door to open Recycling access 4695 | -9/Storage | Discovered new exit (range 4) 4701 | -9/Storage | Entered Recycling 5239 | -9/Recycling | Discovered new exit (range 16) 5294 | -9/Recycling | Scanned before Scraplab entrance 5503 | -9/Recycling | Entered Factory 5503 | -7/Factory | Evolved 4 slots: Utility x3, Weapon x1 5795 | -7/Factory | Build established: Tank 6967 | -7/Factory | Garrison activated, responded to threat 7071 | -7/Factory | Destroyed 7 combat bots 7473 | -7/Factory | Discovered new exit (range 14) 7537 | -7/Factory | Identified exit to Lower Caves 7871 | -7/Factory | Discovered new exit (range 16) 7933 | -7/Factory | Build established: Mutant 8202 | -7/Factory | Discovered new exit (range 9) 8231 | -7/Factory | Destroyed 7 combat bots 8233 | -7/Factory | Build established: Tank 8303 | -7/Factory | First assault squad dispatched 8515 | -7/Factory | Repaired Adv. Treads 8555 | -7/Factory | Repaired Adv. Treads 9175 | -7/Factory | Discovered new exit (range 15) 9740 | -7/Factory | Sucked down chute 9740 | -7/Factory | Entered Waste 9741 | -7/Waste | Met a frightened Derelict 9755 | -7/Waste | EMP discharged 9777 | -7/Waste | Spotted C-40 Crusher 9783 | -7/Waste | Spotted C-40 Crusher 9789 | -7/Waste | Destroyed C-40 Crusher 9791 | -7/Waste | Spotted C-40 Crusher 9792 | -7/Waste | Destroyed C-40 Crusher 9800 | -7/Waste | Destroyed C-40 Crusher 9814 | -7/Waste | Spotted C-40 Crusher 9818 | -7/Waste | Destroyed C-40 Crusher 9826 | -7/Waste | Spotted C-40 Crusher 9855 | -7/Waste | EMP discharged 9855 | -7/Waste | System corruption reached 10% 9871 | -7/Waste | Destroyed C-40 Crusher 9882 | -7/Waste | Spotted C-40 Crusher 9891 | -7/Waste | Destroyed C-40 Crusher 9941 | -7/Waste | Discovered new exit (range 12) 9955 | -7/Waste | EMP discharged 9961 | -7/Waste | Entered Factory 9996 | -7/Factory | Garrison activated, responded to threat 10777 | -7/Factory | Build established: Scientist-Tank 11434 | -7/Factory | Discovered exit to Lower Caves (range 5) 11464 | -7/Factory | Entered Lower Caves 11593 | -7/Lower Caves | Attracted the attention of an 0b10 checkpoint 11771 | -7/Lower Caves | Learned Factory terminal intel 11772 | -7/Lower Caves | Learned Factory trap positions 12420 | -7/Lower Caves | Discovered new exit (range 6) 12452 | -7/Lower Caves | Entered another Lower Caves area 12457 | -7/Lower Caves | Discovered new exit (range 7) 12547 | -7/Lower Caves | Spotted B-75 Beast 12614 | -7/Lower Caves | Destroyed B-75 Beast 12959 | -7/Lower Caves | Build established: Gunner 13322 | -7/Lower Caves | Attracted the attention of an 0b10 outpost 13326 | -7/Lower Caves | Core integrity fell below 50% 13344 | -7/Lower Caves | Core integrity fell below 20% 13358 | -7/Lower Caves | Destroyed self with Precision Grenade Launcher Last Messages --------------- 13348_ B-48 Gladiator destroyed. 13349_ Rnf. Deuterium Engine destroyed. 13350_ Y-64 Sentinel heat short circuits Wave Gun. 13350_ Spk. Treads destroyed. 13350_ Mni. Assault Cannon destroyed. 13351_ System corrupted: Assault Cannon+ jammed. 13351_ Imp. Cooling System destroyed. 13354_ Lgt. Treads+ destroyed. 13354_ Destroyed Imp. Deuterium Engine. 13354_ Hvy. Machine Gun destroyed. 13354_ Destroyed Hvy. Machine Gun. 13354_ Weapon Cycler destroyed. 13354_ Destroyed Weapon Cycler. 13354_ G-47 Trooper destroyed. 13354_ Y-64 Sentinel destroyed. 13354_ S-27 Virus destroyed. 13354_ Critical hit (Burn: +37). 13354_ Assault Cannon+ severed. 13356_ G-47 Trooper destroyed. 13357_ Mace fries itself beyond repair. Map ----- +----------------------------------------------------+ | ?????????????????????????????????????????????????? | | ?????????????????????????????????????????????????? | | ?????????????????????????????????????????????????? | | ?????????????????????????????????????????????????? | | ?????????????????????????????????????????????????? | | ?????????????????????????????????????????????????? | | ?????????????????????????????????????????????????? | | ?????????????????????????????????????????????????? | | ?????????????????????????????????????????????????? | | ?????????????????????????????????????????????????? | | ????????????????????????????####?????########????? | | ???????????????????????????## #??### #????? | | ??????????????????????????## ### #?????? | | ?????????????????????????## #####?##### | | ?????????????????????????# ##????## # | | ?????????????????????????# ## ##????## # | | ?????????????????????????## ### #?????# | | ???????????????????????????# ### #?????# ## | | ???????????????????#???????# #?????# ### | | ???????????????????? ??????# ###???# #?# | | ????????????????????# ??#### ###?# ### | | ????????????????????# ?# # ;## ### ## | | ???????????????????## ##%# #?# | | ???????????????????# = ### | | ???????????????????# # ##### | | ???????????????????# %@] ## ##???### | | ???????????????????# %%l #### #####??????### | | ???????????????????# ! ""?# ##????????????? | | ??????????????????#; # ###?????????????# | | ??????????????????## # # #?????????????### | | ??????????????????# # # #?????????????# | | ????????????????? # # ????????????# # | | ????????????????# ?#""""bb# ???????????????? | | ????????????????# ?######## ???????????????? | | ???????????????# ???????? ???????????????? | | ??????????????#; # ?????????## ???????????????? | | ??????????????## ### ??????????? ???????????????? | | ???????????????# ??#???????????? ???????????????? | | ???????????????# ???????????????? ???????????????? | | ???????????????#????????????????? ???????????????? | | ????????????????????????????????? ???????????????? | | ????????????????????????????????? ???????????????? | | ????????????????????????????????? ???????????????? | | ????????????????????????????????? ???????????????? | | ?????????????????????????????????#???????????????? | | ?????????????????????????????????????????????????? | | ?????????????????????????????????????????????????? | | ?????????????????????????????????????????????????? | | ?????????????????????????????????????????????????? | | ?????????????????????????????????????????????????? | +----------------------------------------------------+ Best States ------------- Heat Dissipation 88 Energy Generation 18 Energy Capacity 290 Matter Stores 300 Matter Capacity 300 Sight Range 20 Terrain Scan Density 10 Armor Coverage 600 Weapon Cycling 15 Evasion (%) 55 Recoil Reduction 3 Matter Filtering 30 Kinecelleration 30 Offensive Hacking 10 Item Schematics ----------------- Imp. Medium Treads | -7/Factory | Hacked Robot Schematics ------------------ None Fabricated ------------ Nothing Repaired ---------- Lgt. Treads | 55% | -9/Materials Adv. Treads | 4% | -7/Factory Adv. Treads | 18% | -7/Factory Studied --------- Rocket Launcher | -9/Materials | Hacked Adv. Assault Cannon | -7/Factory | Hacked Imp. Deuterium Engine | -7/Factory | Hacked Assault Cannon | -7/Factory | Hacked Gauss Cannon | -7/Factory | Hacked Ion Cannon | -7/Factory | Hacked Adv. Treads | -7/Factory | Hacked Lgt. Treads | -7/Factory | Hacked Alien Tech Used ----------------- None Achievements -------------- None Challenges ------------ None Game ------ Seed PiercelightCombatAutohacker Manual? 0 Play Time 01:28:21 Cumulative 476.8 hours Start 2026.02.22 @ 16:31:08 End 2026.02.24 @ 04:52:11 Sessions 9 Manual Loads 0 Difficulty Rogue Special Mode None Game No. 228 Rogue 228 Adventurer 0 Explorer 0 Win Type - Total 14 Types 9/0/2/0/0/0/0/1/0/2 Lore% 86 Gallery% 81 Achievement% 67 Wizard Run 0 Options --------- Layout 0 ASCII 0 Keyboard 0 Movement Mouse Keybinds 0 Fullscreen 1 Font 18/SmallcapsGlow Map View 76x50 Zoom Use 0% Tactical HUD 1 Map Filters NONE Filters NONE Steam 1 RUN: 9ef58325-9a30-495c-a717-c59a81014236